[Event "Live Chess"]
[Site "Chess.com"]
[Date "2010.12.10"]
[Round "-"]
[White "rooktoorook"]
[Black "hipposcottimus"]
[Result "0-1"]
[CurrentPosition "8/pp6/8/8/kP6/2K5/8/8 w - -"]
[Timezone "UTC"]
[ECO "A40"]
[ECOUrl "https://www.chess.com/openings/Englund-Gambit-Declined-Reversed-French-Variation"]
[UTCDate "2010.12.10"]
[UTCTime "21:54:39"]
[WhiteElo "1389"]
[BlackElo "1682"]
[TimeControl "60"]
[Termination "hipposcottimus won on time"]
[StartTime "21:54:39"]
[EndDate "2010.12.10"]
[EndTime "21:56:58"]
[Link "https://www.chess.com/game/live/76032822"]

1. e3 {[%clk 0:01:00]} 1... e5 {[%clk 0:01:00]} 2. d4 {[%clk 0:00:59.2]} 2... e4 {[%clk 0:00:58.9]} 3. f3 {[%clk 0:00:57.9]} 3... d5 {[%clk 0:00:58.6]} 4. fxe4 {[%clk 0:00:57]} 4... dxe4 {[%clk 0:00:58.3]} 5. g3 {[%clk 0:00:56.1]} 5... f5 {[%clk 0:00:58.1]} 6. Bg2 {[%clk 0:00:55.4]} 6... Nf6 {[%clk 0:00:57.8]} 7. Nh3 {[%clk 0:00:53.7]} 7... Nc6 {[%clk 0:00:57.5]} 8. Nf4 {[%clk 0:00:53.1]} 8... Bd6 {[%clk 0:00:53.8]} 9. a3 {[%clk 0:00:52.3]} 9... O-O {[%clk 0:00:52.3]} 10. c3 {[%clk 0:00:50.5]} 10... Qe8 {[%clk 0:00:51.3]} 11. O-O {[%clk 0:00:48.3]} 11... Be6 {[%clk 0:00:50.9]} 12. b3 {[%clk 0:00:46.1]} 12... Bf7 {[%clk 0:00:49.8]} 13. c4 {[%clk 0:00:45.4]} 13... Nh5 {[%clk 0:00:48.1]} 14. Nxh5 {[%clk 0:00:43.4]} 14... Bxh5 {[%clk 0:00:47]} 15. Qe1 {[%clk 0:00:42.4]} 15... Qg6 {[%clk 0:00:45.9]} 16. d5 {[%clk 0:00:40]} 16... Ne7 {[%clk 0:00:42.4]} 17. Bb2 {[%clk 0:00:39.1]} 17... c6 {[%clk 0:00:42.1]} 18. Bd4 {[%clk 0:00:37.6]} 18... cxd5 {[%clk 0:00:39.1]} 19. cxd5 {[%clk 0:00:36.4]} 19... Nxd5 {[%clk 0:00:38.8]} 20. Nc3 {[%clk 0:00:34.9]} 20... Be7 {[%clk 0:00:36.8]} 21. Nxd5 {[%clk 0:00:33.3]} 21... Bg5 {[%clk 0:00:34]} 22. Nf4 {[%clk 0:00:31.4]} 22... Bxf4 {[%clk 0:00:32.8]} 23. exf4 {[%clk 0:00:30.4]} 23... Bf3 {[%clk 0:00:31.4]} 24. Bxf3 {[%clk 0:00:28.7]} 24... exf3 {[%clk 0:00:30.9]} 25. Rxf3 {[%clk 0:00:28]} 25... Qg4 {[%clk 0:00:30.5]} 26. Qf2 {[%clk 0:00:26.5]} 26... Rad8 {[%clk 0:00:30]} 27. Rf1 {[%clk 0:00:23.1]} 27... Rxd4 {[%clk 0:00:27.8]} 28. Qxd4 {[%clk 0:00:22.1]} 28... Rd8 {[%clk 0:00:25.1]} 29. Qxd8+ {[%clk 0:00:20.4]} 29... Kf7 {[%clk 0:00:24.8]} 30. Qd7+ {[%clk 0:00:19.5]} 30... Kg6 {[%clk 0:00:23.5]} 31. R1f2 {[%clk 0:00:18.5]} 31... Kh5 {[%clk 0:00:23.1]} 32. Qd6 {[%clk 0:00:17.6]} 32... g6 {[%clk 0:00:22.6]} 33. Qe7 {[%clk 0:00:16.7]} 33... Qh3 {[%clk 0:00:22.3]} 34. Qxh7+ {[%clk 0:00:15.8]} 34... Kg4 {[%clk 0:00:19.5]} 35. Qxh3+ {[%clk 0:00:15.1]} 35... Kxh3 {[%clk 0:00:19.2]} 36. Rg2 {[%clk 0:00:13.5]} 36... Kg4 {[%clk 0:00:18.9]} 37. h3+ {[%clk 0:00:12.9]} 37... Kxf3 {[%clk 0:00:18.3]} 38. Rf2+ {[%clk 0:00:11.5]} 38... Kxg3 {[%clk 0:00:17.7]} 39. h4 {[%clk 0:00:09.8]} 39... Kxh4 {[%clk 0:00:17.1]} 40. Rh2+ {[%clk 0:00:09.3]} 40... Kg4 {[%clk 0:00:16.8]} 41. Rg2+ {[%clk 0:00:08.8]} 41... Kxf4 {[%clk 0:00:16.2]} 42. Rxg6 {[%clk 0:00:08.1]} 42... Ke5 {[%clk 0:00:15.9]} 43. Rg2 {[%clk 0:00:07.5]} 43... Ke4 {[%clk 0:00:15.5]} 44. Re2+ {[%clk 0:00:07.1]} 44... Kf4 {[%clk 0:00:15.3]} 45. Kf1 {[%clk 0:00:06.6]} 45... Kg5 {[%clk 0:00:15]} 46. Rf2 {[%clk 0:00:06.1]} 46... f4 {[%clk 0:00:14.7]} 47. Rd2 {[%clk 0:00:05.5]} 47... Kg4 {[%clk 0:00:14.4]} 48. Rd5 {[%clk 0:00:05.1]} 48... Kg3 {[%clk 0:00:14.1]} 49. Rf5 {[%clk 0:00:04.4]} 49... Kf3 {[%clk 0:00:12.4]} 50. Rxf4+ {[%clk 0:00:03.4]} 50... Kxf4 {[%clk 0:00:11.6]} 51. Ke2 {[%clk 0:00:03.1]} 51... Ke5 {[%clk 0:00:11.3]} 52. Kd3 {[%clk 0:00:02.2]} 52... Kd5 {[%clk 0:00:11.1]} 53. Kc3 {[%clk 0:00:01.7]} 53... Kc5 {[%clk 0:00:10.8]} 54. b4+ {[%clk 0:00:01.2]} 54... Kb5 {[%clk 0:00:10.5]} 55. a4+ {[%clk 0:00:00.2]} 55... Kxa4 {[%clk 0:00:08.6]} 0-1

[Event "Live Chess"]
[Site "Chess.com"]
[Date "2010.12.10"]
[Round "-"]
[White "hipposcottimus"]
[Black "ShunTymes"]
[Result "0-1"]
[CurrentPosition "1rb2b1r/1p2k2p/p3pB2/2P5/3n4/8/PPP2PPP/R4RK1 b - -"]
[Timezone "UTC"]
[ECO "B40"]
[ECOUrl "https://www.chess.com/openings/Sicilian-Defense-French-Variation"]
[UTCDate "2010.12.10"]
[UTCTime "21:53:14"]
[WhiteElo "1679"]
[BlackElo "2212"]
[TimeControl "60"]
[Termination "ShunTymes won by resignation"]
[StartTime "21:53:14"]
[EndDate "2010.12.10"]
[EndTime "21:54:01"]
[Link "https://www.chess.com/game/live/76032400"]

1. e4 {[%clk 0:01:00]} 1... e6 {[%clk 0:01:00]} 2. Nf3 {[%clk 0:00:59.6]} 2... c5 {[%clk 0:00:59.6]} 3. e5 {[%clk 0:00:59.3]} 3... Nc6 {[%clk 0:00:59.1]} 4. d4 {[%clk 0:00:59.1]} 4... Nge7 {[%clk 0:00:58.5]} 5. dxc5 {[%clk 0:00:57.3]} 5... d5 {[%clk 0:00:58.1]} 6. Nc3 {[%clk 0:00:57]} 6... d4 {[%clk 0:00:57.1]} 7. Nxd4 {[%clk 0:00:55.6]} 7... Qxd4 {[%clk 0:00:54.8]} 8. Qxd4 {[%clk 0:00:55.4]} 8... Nxd4 {[%clk 0:00:54.2]} 9. Bb5+ {[%clk 0:00:54.3]} 9... Nec6 {[%clk 0:00:52.4]} 10. O-O {[%clk 0:00:51.5]} 10... Nxb5 {[%clk 0:00:49.8]} 11. Nxb5 {[%clk 0:00:49.9]} 11... Rb8 {[%clk 0:00:46.4]} 12. Nc7+ {[%clk 0:00:48.6]} 12... Ke7 {[%clk 0:00:45.9]} 13. Nb5 {[%clk 0:00:48.1]} 13... a6 {[%clk 0:00:43.9]} 14. Bg5+ {[%clk 0:00:47.7]} 14... f6 {[%clk 0:00:42.6]} 15. exf6+ {[%clk 0:00:47.2]} 15... gxf6 {[%clk 0:00:41.6]} 16. Nd4 {[%clk 0:00:43.9]} 16... Nxd4 {[%clk 0:00:39.6]} 17. Bxf6+ {[%clk 0:00:42.1]} 0-1

[Event "Live Chess"]
[Site "Chess.com"]
[Date "2010.12.10"]
[Round "-"]
[White "Hedmo461"]
[Black "hipposcottimus"]
[Result "0-1"]
[CurrentPosition "7k/pp2N2r/8/8/2p2P2/4b1R1/PP5r/R6K w - -"]
[Timezone "UTC"]
[ECO "A00"]
[ECOUrl "https://www.chess.com/openings/Kings-Fianchetto-Opening-1...e5-2.Bg2-d5-3.d3"]
[UTCDate "2010.12.10"]
[UTCTime "21:50:27"]
[WhiteElo "1478"]
[BlackElo "1679"]
[TimeControl "60"]
[Termination "hipposcottimus won by checkmate"]
[StartTime "21:50:27"]
[EndDate "2010.12.10"]
[EndTime "21:52:16"]
[Link "https://www.chess.com/game/live/76031612"]

1. g3 {[%clk 0:01:00]} 1... e5 {[%clk 0:01:00]} 2. Bg2 {[%clk 0:00:59.6]} 2... d5 {[%clk 0:00:59.7]} 3. d3 {[%clk 0:00:59.3]} 3... e4 {[%clk 0:00:59.5]} 4. f4 {[%clk 0:00:58.9]} 4... f5 {[%clk 0:00:57.6]} 5. dxe4 {[%clk 0:00:57.5]} 5... fxe4 {[%clk 0:00:57.3]} 6. e3 {[%clk 0:00:56.3]} 6... Nf6 {[%clk 0:00:57.1]} 7. Ne2 {[%clk 0:00:55.4]} 7... c5 {[%clk 0:00:56.7]} 8. O-O {[%clk 0:00:54.7]} 8... Nc6 {[%clk 0:00:56.4]} 9. c4 {[%clk 0:00:52.9]} 9... Be6 {[%clk 0:00:56.1]} 10. cxd5 {[%clk 0:00:51.5]} 10... Bxd5 {[%clk 0:00:55.9]} 11. Nbc3 {[%clk 0:00:49.8]} 11... c4 {[%clk 0:00:55.5]} 12. Bd2 {[%clk 0:00:48.7]} 12... Bc5 {[%clk 0:00:52.2]} 13. Qc2 {[%clk 0:00:47.7]} 13... O-O {[%clk 0:00:49.9]} 14. Nxe4 {[%clk 0:00:46.3]} 14... Nb4 {[%clk 0:00:49.1]} 15. Qb1 {[%clk 0:00:43.9]} 15... Bxe4 {[%clk 0:00:47.6]} 16. Bxe4 {[%clk 0:00:42.7]} 16... Ng4 {[%clk 0:00:43.8]} 17. Bxh7+ {[%clk 0:00:41]} 17... Kh8 {[%clk 0:00:42.7]} 18. Bc3 {[%clk 0:00:39.7]} 18... Bxe3+ {[%clk 0:00:40.3]} 19. Kg2 {[%clk 0:00:35.5]} 19... Nd5 {[%clk 0:00:38.4]} 20. Bxg7+ {[%clk 0:00:32.5]} 20... Kxg7 {[%clk 0:00:35.5]} 21. Qg6+ {[%clk 0:00:30.8]} 21... Kh8 {[%clk 0:00:31.4]} 22. Qxg4 {[%clk 0:00:29.6]} 22... Nxf4+ {[%clk 0:00:27.2]} 23. gxf4 {[%clk 0:00:27.8]} 23... Rf7 {[%clk 0:00:26.1]} 24. Kh1 {[%clk 0:00:26.3]} 24... Rxh7 {[%clk 0:00:25.1]} 25. Rf3 {[%clk 0:00:25.1]} 25... Qe7 {[%clk 0:00:22.7]} 26. Ng3 {[%clk 0:00:21.1]} 26... Rg8 {[%clk 0:00:16.4]} 27. Nf5 {[%clk 0:00:19.1]} 27... Rxg4 {[%clk 0:00:14.2]} 28. Nxe7 {[%clk 0:00:18.1]} 28... Rgh4 {[%clk 0:00:13.6]} 29. Rg3 {[%clk 0:00:14.1]} 29... Rxh2# {[%clk 0:00:11.8]} 0-1

[Event "Live Chess"]
[Site "Chess.com"]
[Date "2010.12.10"]
[Round "-"]
[White "hipposcottimus"]
[Black "Hedmo461"]
[Result "0-1"]
[CurrentPosition "8/6pp/4p3/1p6/8/6k1/r4N2/5K2 w - -"]
[Timezone "UTC"]
[ECO "B00"]
[ECOUrl "https://www.chess.com/openings/Owens-Defense-2.d4-Bb7"]
[UTCDate "2010.12.10"]
[UTCTime "21:47:47"]
[WhiteElo "1675"]
[BlackElo "1483"]
[TimeControl "60"]
[Termination "Hedmo461 won on time"]
[StartTime "21:47:47"]
[EndDate "2010.12.10"]
[EndTime "21:50:06"]
[Link "https://www.chess.com/game/live/76030925"]

1. e4 {[%clk 0:01:00]} 1... b6 {[%clk 0:01:00]} 2. d4 {[%clk 0:00:58.5]} 2... Bb7 {[%clk 0:00:59.6]} 3. e5 {[%clk 0:00:58.3]} 3... e6 {[%clk 0:00:58.9]} 4. Qd3 {[%clk 0:00:57.6]} 4... c5 {[%clk 0:00:58.1]} 5. Nf3 {[%clk 0:00:57.1]} 5... cxd4 {[%clk 0:00:56.5]} 6. Nxd4 {[%clk 0:00:56.1]} 6... Nc6 {[%clk 0:00:56.2]} 7. f3 {[%clk 0:00:55.2]} 7... Nxe5 {[%clk 0:00:55]} 8. Qb5 {[%clk 0:00:50.6]} 8... Qc7 {[%clk 0:00:53.6]} 9. Nc3 {[%clk 0:00:48.8]} 9... Rc8 {[%clk 0:00:52.4]} 10. Bd3 {[%clk 0:00:45.9]} 10... Bc6 {[%clk 0:00:51.3]} 11. Qb3 {[%clk 0:00:44.3]} 11... Bd5 {[%clk 0:00:49.6]} 12. Qb4 {[%clk 0:00:41.8]} 12... Bxb4 {[%clk 0:00:47.9]} 13. O-O {[%clk 0:00:39.9]} 13... Nxd3 {[%clk 0:00:46.4]} 14. cxd3 {[%clk 0:00:38.8]} 14... Bxc3 {[%clk 0:00:45.7]} 15. bxc3 {[%clk 0:00:38.4]} 15... Qxc3 {[%clk 0:00:44]} 16. Nb5 {[%clk 0:00:35.7]} 16... Qxa1 {[%clk 0:00:42.9]} 17. Nxa7 {[%clk 0:00:32.8]} 17... Qd4+ {[%clk 0:00:40.6]} 18. Kh1 {[%clk 0:00:30.4]} 18... Rxc1 {[%clk 0:00:39.2]} 19. Rxc1 {[%clk 0:00:29.5]} 19... Qxd3 {[%clk 0:00:38.2]} 20. Rc8+ {[%clk 0:00:26.3]} 20... Ke7 {[%clk 0:00:37.4]} 21. Rc1 {[%clk 0:00:25.5]} 21... Qd2 {[%clk 0:00:36.6]} 22. Nc8+ {[%clk 0:00:24.2]} 22... Kf6 {[%clk 0:00:34.7]} 23. Rf1 {[%clk 0:00:22.3]} 23... Bc4 {[%clk 0:00:32.7]} 24. Rg1 {[%clk 0:00:20.1]} 24... Qf2 {[%clk 0:00:31.2]} 25. Nd6 {[%clk 0:00:19.2]} 25... Nh6 {[%clk 0:00:29.8]} 26. Nxc4 {[%clk 0:00:17.9]} 26... Rc8 {[%clk 0:00:27.7]} 27. Nd6 {[%clk 0:00:11.8]} 27... Nf5 {[%clk 0:00:26.4]} 28. Ne4+ {[%clk 0:00:11.1]} 28... Kg6 {[%clk 0:00:23.9]} 29. Nxf2 {[%clk 0:00:10.8]} 29... Nh4 {[%clk 0:00:22.8]} 30. Ng4 {[%clk 0:00:10.3]} 30... Kg5 {[%clk 0:00:21.6]} 31. Ne5 {[%clk 0:00:09.6]} 31... Kh5 {[%clk 0:00:19]} 32. Nxd7 {[%clk 0:00:08.8]} 32... Rc7 {[%clk 0:00:17.9]} 33. Ne5 {[%clk 0:00:08.5]} 33... f6 {[%clk 0:00:17.2]} 34. Ng4 {[%clk 0:00:06.8]} 34... f5 {[%clk 0:00:16.1]} 35. Ne3 {[%clk 0:00:06.4]} 35... f4 {[%clk 0:00:14.8]} 36. Nf1 {[%clk 0:00:06.1]} 36... Rc2 {[%clk 0:00:13.3]} 37. g3 {[%clk 0:00:05.9]} 37... fxg3 {[%clk 0:00:11.7]} 38. hxg3 {[%clk 0:00:04.9]} 38... Nxf3 {[%clk 0:00:10.5]} 39. g4+ {[%clk 0:00:03.6]} 39... Kg5 {[%clk 0:00:09]} 40. Ng3 {[%clk 0:00:02.8]} 40... Nxg1 {[%clk 0:00:07.8]} 41. Ne4+ {[%clk 0:00:01.6]} 41... Kxg4 {[%clk 0:00:06.5]} 42. Kxg1 {[%clk 0:00:01.3]} 42... Rxa2 {[%clk 0:00:05.3]} 43. Nf2+ {[%clk 0:00:00.8]} 43... Kg3 {[%clk 0:00:03.8]} 44. Kf1 {[%clk 0:00:00.5]} 44... b5 {[%clk 0:00:03.3]} 0-1

[Event "Live Chess"]
[Site "Chess.com"]
[Date "2010.12.10"]
[Round "-"]
[White "rodolf"]
[Black "hipposcottimus"]
[Result "0-1"]
[CurrentPosition "5r1k/ppp3pp/8/8/2B1P3/2P1q1Pb/PP6/3R1RK1 w - -"]
[Timezone "UTC"]
[ECO "C20"]
[ECOUrl "https://www.chess.com/openings/Kings-Pawn-Opening-Leonardis-Variation"]
[UTCDate "2010.12.10"]
[UTCTime "21:45:07"]
[WhiteElo "1594"]
[BlackElo "1686"]
[TimeControl "60"]
[Termination "hipposcottimus won on time"]
[StartTime "21:45:07"]
[EndDate "2010.12.10"]
[EndTime "21:47:17"]
[Link "https://www.chess.com/game/live/76030215"]

1. e4 {[%clk 0:01:00]} 1... e5 {[%clk 0:01:00]} 2. d3 {[%clk 0:00:59.4]} 2... Nc6 {[%clk 0:00:59.8]} 3. c3 {[%clk 0:00:59]} 3... Nf6 {[%clk 0:00:58.9]} 4. Qc2 {[%clk 0:00:58.7]} 4... d5 {[%clk 0:00:58.6]} 5. Bg5 {[%clk 0:00:57.9]} 5... dxe4 {[%clk 0:00:57.4]} 6. dxe4 {[%clk 0:00:56.4]} 6... Qd6 {[%clk 0:00:56.6]} 7. Nd2 {[%clk 0:00:55.8]} 7... Nd7 {[%clk 0:00:49.6]} 8. Bb5 {[%clk 0:00:53.6]} 8... f6 {[%clk 0:00:47.7]} 9. Bh4 {[%clk 0:00:51.8]} 9... Be7 {[%clk 0:00:46.6]} 10. Bg3 {[%clk 0:00:50.9]} 10... O-O {[%clk 0:00:45.6]} 11. Rd1 {[%clk 0:00:48.6]} 11... f5 {[%clk 0:00:44.1]} 12. Nc4 {[%clk 0:00:44.4]} 12... Qg6 {[%clk 0:00:42.5]} 13. exf5 {[%clk 0:00:39.6]} 13... Rxf5 {[%clk 0:00:39.8]} 14. Ne3 {[%clk 0:00:32.7]} 14... Rg5 {[%clk 0:00:32]} 15. Bd3 {[%clk 0:00:28.7]} 15... Qf6 {[%clk 0:00:30.5]} 16. Nd5 {[%clk 0:00:23.9]} 16... Qh6 {[%clk 0:00:28.3]} 17. Nxe7+ {[%clk 0:00:14.9]} 17... Nxe7 {[%clk 0:00:26.2]} 18. Bc4+ {[%clk 0:00:13.9]} 18... Kh8 {[%clk 0:00:24.7]} 19. Nf3 {[%clk 0:00:10.8]} 19... Rxg3 {[%clk 0:00:16.4]} 20. fxg3 {[%clk 0:00:09.2]} 20... e4 {[%clk 0:00:14.6]} 21. O-O {[%clk 0:00:08.8]} 21... exf3 {[%clk 0:00:13.4]} 22. gxf3 {[%clk 0:00:07.3]} 22... Nf5 {[%clk 0:00:13.1]} 23. Qe4 {[%clk 0:00:06.3]} 23... Nxg3 {[%clk 0:00:12.1]} 24. hxg3 {[%clk 0:00:04.8]} 24... Nc5 {[%clk 0:00:11.1]} 25. Kg2 {[%clk 0:00:04]} 25... Bh3+ {[%clk 0:00:05.7]} 26. Kf2 {[%clk 0:00:02.5]} 26... Nxe4+ {[%clk 0:00:05.4]} 27. fxe4 {[%clk 0:00:01.7]} 27... Rf8+ {[%clk 0:00:04.8]} 28. Kg1 {[%clk 0:00:01]} 28... Qe3+ {[%clk 0:00:03.4]} 0-1

[Event "Live Chess"]
[Site "Chess.com"]
[Date "2010.12.10"]
[Round "-"]
[White "dgolds25"]
[Black "hipposcottimus"]
[Result "0-1"]
[CurrentPosition "3R4/3R1ppp/4pk2/8/8/5P2/N1r1KPPP/8 w - -"]
[Timezone "UTC"]
[ECO "A06"]
[ECOUrl "https://www.chess.com/openings/Reti-Opening-Reversed-Mexican-Defense"]
[UTCDate "2010.12.10"]
[UTCTime "21:42:22"]
[WhiteElo "1520"]
[BlackElo "1680"]
[TimeControl "60"]
[Termination "hipposcottimus won on time"]
[StartTime "21:42:22"]
[EndDate "2010.12.10"]
[EndTime "21:44:38"]
[Link "https://www.chess.com/game/live/76029468"]

1. Nf3 {[%clk 0:01:00]} 1... d5 {[%clk 0:01:00]} 2. Nc3 {[%clk 0:00:59.2]} 2... Bg4 {[%clk 0:00:59.4]} 3. d4 {[%clk 0:00:58.3]} 3... Bxf3 {[%clk 0:00:58.6]} 4. exf3 {[%clk 0:00:58]} 4... Nc6 {[%clk 0:00:57.8]} 5. Bb5 {[%clk 0:00:57.5]} 5... e6 {[%clk 0:00:57.5]} 6. Bxc6+ {[%clk 0:00:57.1]} 6... bxc6 {[%clk 0:00:56.8]} 7. Bf4 {[%clk 0:00:56.4]} 7... Nf6 {[%clk 0:00:56.6]} 8. Qd2 {[%clk 0:00:55.3]} 8... Bb4 {[%clk 0:00:56.1]} 9. Be5 {[%clk 0:00:54.3]} 9... O-O {[%clk 0:00:52.2]} 10. O-O-O {[%clk 0:00:53.2]} 10... Nd7 {[%clk 0:00:50.7]} 11. Qd3 {[%clk 0:00:51.4]} 11... Nxe5 {[%clk 0:00:48.8]} 12. dxe5 {[%clk 0:00:49.3]} 12... c5 {[%clk 0:00:48.2]} 13. Ne2 {[%clk 0:00:46.3]} 13... c4 {[%clk 0:00:47]} 14. Qe3 {[%clk 0:00:42.7]} 14... Rb8 {[%clk 0:00:46.7]} 15. Qxa7 {[%clk 0:00:40.9]} 15... c5 {[%clk 0:00:40.7]} 16. a3 {[%clk 0:00:37.8]} 16... Ba5 {[%clk 0:00:34.1]} 17. Qxc5 {[%clk 0:00:36.9]} 17... Bb6 {[%clk 0:00:28.5]} 18. Qb4 {[%clk 0:00:34.8]} 18... Qc7 {[%clk 0:00:27.9]} 19. Qc3 {[%clk 0:00:33.6]} 19... Qb7 {[%clk 0:00:25]} 20. Nd4 {[%clk 0:00:32.2]} 20... Bc7 {[%clk 0:00:20.4]} 21. Kb1 {[%clk 0:00:30.9]} 21... Bxe5 {[%clk 0:00:19.5]} 22. Qe3 {[%clk 0:00:24.8]} 22... Bc7 {[%clk 0:00:19.2]} 23. Qc3 {[%clk 0:00:23.4]} 23... Bb6 {[%clk 0:00:18.6]} 24. Ne2 {[%clk 0:00:20.8]} 24... Qa7 {[%clk 0:00:17.9]} 25. Nc1 {[%clk 0:00:19]} 25... d4 {[%clk 0:00:17.2]} 26. Qxc4 {[%clk 0:00:17.1]} 26... Rbc8 {[%clk 0:00:15.2]} 27. Qb3 {[%clk 0:00:15.5]} 27... Qc7 {[%clk 0:00:14]} 28. Rd2 {[%clk 0:00:13.7]} 28... Qb7 {[%clk 0:00:13.8]} 29. a4 {[%clk 0:00:12]} 29... Rc6 {[%clk 0:00:13.4]} 30. a5 {[%clk 0:00:11.2]} 30... Rfc8 {[%clk 0:00:13.1]} 31. axb6 {[%clk 0:00:10.4]} 31... Rxb6 {[%clk 0:00:12.6]} 32. Qa3 {[%clk 0:00:08.6]} 32... Rxb2+ {[%clk 0:00:12.3]} 33. Qxb2 {[%clk 0:00:07.6]} 33... Qxb2+ {[%clk 0:00:11.9]} 34. Kxb2 {[%clk 0:00:07.2]} 34... Rb8+ {[%clk 0:00:11.5]} 35. Ka3 {[%clk 0:00:06.8]} 35... Ra8+ {[%clk 0:00:11.2]} 36. Kb4 {[%clk 0:00:05.9]} 36... Rb8+ {[%clk 0:00:10.9]} 37. Kc4 {[%clk 0:00:05.3]} 37... Rc8+ {[%clk 0:00:10.5]} 38. Kxd4 {[%clk 0:00:04.8]} 38... Rd8+ {[%clk 0:00:10.2]} 39. Ke3 {[%clk 0:00:04.4]} 39... Rc8 {[%clk 0:00:08.2]} 40. Rhd1 {[%clk 0:00:03.8]} 40... Rc3+ {[%clk 0:00:07.3]} 41. Ke2 {[%clk 0:00:03]} 41... Kf8 {[%clk 0:00:06.7]} 42. Rd8+ {[%clk 0:00:01.9]} 42... Ke7 {[%clk 0:00:06.4]} 43. R1d7+ {[%clk 0:00:01.2]} 43... Kf6 {[%clk 0:00:05.9]} 44. Na2 {[%clk 0:00:00.8]} 44... Rxc2+ {[%clk 0:00:05.2]} 0-1

[Event "Live Chess"]
[Site "Chess.com"]
[Date "2010.12.10"]
[Round "-"]
[White "ALFREDO3131"]
[Black "hipposcottimus"]
[Result "1-0"]
[CurrentPosition "8/2pk2p1/1p3q2/2Q3N1/3P4/4B3/bPR2PPP/6K1 w - -"]
[Timezone "UTC"]
[ECO "C24"]
[ECOUrl "https://www.chess.com/openings/Bishops-Opening-Berlin-Ponziani-Gambit-3...exd4"]
[UTCDate "2010.12.10"]
[UTCTime "21:39:11"]
[WhiteElo "1889"]
[BlackElo "1675"]
[TimeControl "60+2"]
[Termination "ALFREDO3131 won by resignation"]
[StartTime "21:39:11"]
[EndDate "2010.12.10"]
[EndTime "21:41:28"]
[Link "https://www.chess.com/game/live/76028513"]

1. e4 {[%clk 0:01:00]} 1... e5 {[%clk 0:01:00]} 2. d4 {[%clk 0:01:00.4]} 2... exd4 {[%clk 0:00:59.6]} 3. Bc4 {[%clk 0:01:01.8]} 3... Nf6 {[%clk 0:00:59.4]} 4. Nf3 {[%clk 0:01:03.3]} 4... d6 {[%clk 0:01:00.6]} 5. O-O {[%clk 0:01:03.8]} 5... Be7 {[%clk 0:01:01.3]} 6. e5 {[%clk 0:01:04.4]} 6... dxe5 {[%clk 0:00:57.4]} 7. Nxe5 {[%clk 0:01:05.1]} 7... O-O {[%clk 0:00:59.1]} 8. Nxf7 {[%clk 0:01:05.4]} 8... Rxf7 {[%clk 0:00:59.6]} 9. Bxf7+ {[%clk 0:01:06.1]} 9... Kxf7 {[%clk 0:01:01.4]} 10. c3 {[%clk 0:01:05.9]} 10... Be6 {[%clk 0:01:02.3]} 11. cxd4 {[%clk 0:01:04.9]} 11... Nc6 {[%clk 0:01:03.6]} 12. Be3 {[%clk 0:01:04.3]} 12... Bc4 {[%clk 0:01:00]} 13. Re1 {[%clk 0:01:02]} 13... Bb4 {[%clk 0:01:01.7]} 14. Nc3 {[%clk 0:01:01.4]} 14... Ne4 {[%clk 0:00:57.7]} 15. Nxe4 {[%clk 0:01:00]} 15... Bxe1 {[%clk 0:00:57.5]} 16. Qxe1 {[%clk 0:01:00.7]} 16... Kg8 {[%clk 0:00:56.7]} 17. Qc3 {[%clk 0:00:59.9]} 17... Bd5 {[%clk 0:00:58.1]} 18. Ng5 {[%clk 0:00:58.7]} 18... Qf6 {[%clk 0:00:55.1]} 19. Qd3 {[%clk 0:00:57.6]} 19... Nb4 {[%clk 0:00:53]} 20. Qxh7+ {[%clk 0:00:57.3]} 20... Kf8 {[%clk 0:00:53.3]} 21. Qh8+ {[%clk 0:00:57.5]} 21... Ke7 {[%clk 0:00:53.7]} 22. Qxa8 {[%clk 0:00:57.9]} 22... Nc2 {[%clk 0:00:47.6]} 23. Rc1 {[%clk 0:00:55.9]} 23... Kd6 {[%clk 0:00:49.2]} 24. Qxa7 {[%clk 0:00:54.4]} 24... Bxa2 {[%clk 0:00:50.9]} 25. Qc5+ {[%clk 0:00:52.3]} 25... Kd7 {[%clk 0:00:48.5]} 26. Rxc2 {[%clk 0:00:52.3]} 26... b6 {[%clk 0:00:48]} 1-0

[Event "Live Chess"]
[Site "Chess.com"]
[Date "2010.12.10"]
[Round "-"]
[White "KingGambit80"]
[Black "hipposcottimus"]
[Result "1-0"]
[CurrentPosition "r1b2rk1/ppp2ppp/1n1b4/4p3/4Q3/1PNB4/P2P1PPP/R1B1R1K1 b - -"]
[Timezone "UTC"]
[ECO "C65"]
[ECOUrl "https://www.chess.com/openings/Ruy-Lopez-Opening-Berlin-Defense-4.O-O"]
[UTCDate "2010.12.10"]
[UTCTime "19:13:16"]
[WhiteElo "1338"]
[BlackElo "1441"]
[TimeControl "300"]
[Termination "KingGambit80 won - game abandoned"]
[StartTime "19:13:16"]
[EndDate "2010.12.10"]
[EndTime "19:15:39"]
[Link "https://www.chess.com/game/live/75988099"]

1. e4 {[%clk 0:05:00]} 1... e5 {[%clk 0:05:00]} 2. Nf3 {[%clk 0:04:58.4]} 2... Nc6 {[%clk 0:04:59.7]} 3. Bb5 {[%clk 0:04:57.1]} 3... Nf6 {[%clk 0:04:59.1]} 4. O-O {[%clk 0:04:52.7]} 4... Nd4 {[%clk 0:04:58.1]} 5. Nxd4 {[%clk 0:04:42.6]} 5... exd4 {[%clk 0:04:57.6]} 6. Re1 {[%clk 0:04:39.6]} 6... Be7 {[%clk 0:04:55.9]} 7. e5 {[%clk 0:04:38.4]} 7... Nd5 {[%clk 0:04:55.1]} 8. Bc4 {[%clk 0:04:36]} 8... Nb6 {[%clk 0:04:53.8]} 9. Bd3 {[%clk 0:04:32.2]} 9... O-O {[%clk 0:04:49.1]} 10. c3 {[%clk 0:04:31]} 10... d6 {[%clk 0:04:48.1]} 11. cxd4 {[%clk 0:04:29.1]} 11... dxe5 {[%clk 0:04:47.5]} 12. Qe2 {[%clk 0:04:01]} 12... Qxd4 {[%clk 0:04:34.4]} 13. Nc3 {[%clk 0:03:37.1]} 13... Bd6 {[%clk 0:04:27.8]} 14. b3 {[%clk 0:03:25.8]} 14... Qe4 {[%clk 0:04:21.7]} 15. Qxe4 {[%clk 0:03:23.2]} 1-0